bitfinex/quotes_ETHUSD_20251018
["timestamp","ask_amount","ask_price","bid_price","bid_amount"]
[1760804746190,0.4572,3874.2,3873.8,2.58143942]
[1760804746506,0.17378517,3874.4,3873.7,2.71027901]
[1760804746507,0.2264,3873.9,3873.7,2.71027901]
[1760804746711,0.4572,3873.8,3873.7,2.71027901]
[1760804749786,0.2264,3873.9,3873.8,2.58144457]
[1760804750028,0.6836,3873.9,3873.8,2.58144457]
[1760804754130,0.17378588,3874.4,3874.3,2.58111142]
[1760804754435,0.04498588,3874.4,3874.3,2.58111142]
[1760804754794,0.04498588,3874.4,3874.3,3.15431142]
[1760804755020,0.1288,3874.9,3874.8,2.58077836]
[1760804756012,0.4572,3875.1,3874.9,2.58071176]
[1760804756411,0.2264,3875.3,3874.9,2.70951176]
[1760804756898,0.4592,3875.4,3874.9,2.70951176]
[1760804758332,0.04497598,3875.3,3874.9,2.70951176]
[1760804758716,0.04497598,3875.3,3874.9,3.10974671]
[1760804758903,0.04497598,3875.3,3874.9,3.68294671]
[1760804759606,0.04497598,3875.3,3874.9,3.70875382]
[1760804759800,0.04497598,3875.3,3874.9,3.68294671]
[1760804760930,0.04497598,3875.3,3874.9,3.23854671]
[1760804763209,0.04497598,3875.3,3874.9,3.26435382]
[1760804763531,0.50217598,3875.3,3874.9,3.23854671]
[1760804764036,0.4592,3875.0,3874.9,3.23854671]
[1760804764217,0.002,3875.0,3874.9,3.23854671]
[1760804764820,0.002,3875.0,3874.9,3.67364671]
[1760804765057,0.002,3875.0,3874.9,3.69945382]
[1760804765853,0.002,3875.0,3874.9,3.23854671]
[1760804766932,0.002,3875.0,3874.9,3.70125382]
[1760804767558,0.002,3875.0,3874.9,3.67544671]
[1760804768057,0.002,3875.0,3874.9,3.23854671]
[1760804768645,0.4589,3875.0,3874.9,3.23854671]
[1760804772328,0.4589,3875.0,3874.9,2.70951176]
[1760804772750,0.4589,3875.0,3874.5,2.58096609]
[1760804772944,0.2213,3874.6,3874.4,0.1288]
[1760804773160,0.4569,3874.5,3874.4,0.1288]
[1760804773770,0.4569,3874.5,3873.9,2.71011249]
[1760804773970,0.2213,3874.6,3873.9,2.71011249]
[1760804773971,0.4569,3874.4,3874.0,2.5813113]
[1760804774136,0.3501,3874.6,3874.1,2.58123744]
[1760804774336,0.4569,3874.3,3874.1,2.58123744]
[1760804774549,0.4569,3874.2,3874.1,2.58118808]
[1760804775675,0.3501,3874.6,3873.9,0.1288]
[1760804775887,0.2213,3874.9,3874.1,2.58124467]
[1760804776058,0.2213,3874.9,3874.8,2.58077836]
[1760804776241,0.002,3875.0,3874.9,2.58071176]
[1760804776885,0.4589,3875.0,3874.8,0.1288]
[1760804777089,0.2213,3874.9,3874.8,0.1288]
[1760804777381,0.6782,3874.9,3874.8,0.1288]
[1760804778163,0.723178,3874.9,3874.8,0.1288]
[1760804779286,0.723178,3874.9,3874.8,2.70957836]
[1760804781166,0.723178,3874.9,3874.8,0.1288]
[1760804781563,0.723178,3874.9,3874.8,2.70957836]
[1760804781795,0.723178,3874.9,3874.3,2.58104571]
[1760804781983,0.4569,3874.8,3874.4,2.58103425]
[1760804782357,0.4569,3874.8,3874.5,2.58096585]
[1760804782582,0.4569,3874.7,3874.5,2.58096585]
[1760804782888,0.4569,3874.6,3874.5,2.58096585]
[1760804783792,0.4569,3874.6,3874.1,2.58119619]
[1760804784040,0.1288,3874.7,3874.0,0.1288]
[1760804784199,0.395078,3874.9,3874.6,2.58086202]
[1760804784592,0.395078,3874.9,3874.4,2.5810297]
[1760804784593,0.395078,3874.9,3874.7,2.58084358]
[1760804784904,0.395078,3874.9,3874.6,2.58089826]
[1760804785430,0.4569,3874.8,3874.3,0.1288]
[1760804785583,0.4569,3874.8,3874.3,2.70988912]
[1760804785788,0.4569,3874.7,3874.3,2.70988912]
[1760804786108,0.4569,3874.7,3874.4,2.58103687]
[1760804786286,0.395078,3874.9,3874.4,2.58103687]
[1760804786485,0.4569,3874.6,3874.4,2.58103687]
[1760804787311,0.4569,3874.5,3874.3,0.1288]
[1760804787690,0.4569,3874.5,3874.3,2.70989137]
[1760804788704,0.3501,3874.9,3874.3,2.70989137]
[1760804788904,0.4569,3874.4,3874.3,2.70989137]
[1760804789592,0.4569,3874.7,3874.4,2.58103623]
[1760804789790,0.4569,3874.7,3874.5,2.58096708]
[1760804790811,0.50188079,3874.7,3874.5,2.58096708]
[1760804791334,0.04498079,3874.7,3874.5,2.58096708]
[1760804791531,0.04498079,3874.7,3874.6,2.58091157]
[1760804791829,0.04498079,3874.7,3874.6,2.70971157]
[1760804792046,0.04498079,3874.7,3874.6,0.1288]
[1760804792215,0.50188079,3874.7,3874.6,0.1288]
[1760804792912,0.04498079,3874.7,3874.6,2.70971157]
[1760804793235,0.04498079,3874.7,3874.6,3.71937705]
[1760804793534,0.002,3875.0,3874.9,2.58071176]
[1760804794835,0.002,3875.0,3874.8,0.1288]
[1760804795198,0.002,3875.0,3874.8,2.70952534]
[1760804795930,0.002,3875.0,3874.8,0.1288]
[1760804796432,0.002,3875.0,3874.8,2.70956241]
[1760804796902,0.002,3875.0,3874.9,2.58071176]
[1760804797837,0.002,3875.0,3874.8,2.70954431]
[1760804798738,0.002,3875.0,3874.9,2.58071176]
[1760804800521,0.002,3875.0,3874.9,3.13555377]
[1760804800856,0.002,3875.0,3874.9,3.54244666]
[1760804807653,0.002,3875.0,3874.9,3.69705377]
[1760804807852,0.002,3875.0,3874.9,3.67124666]
[1760804808774,0.002,3875.0,3874.9,3.23854666]
[1760804809372,0.002,3875.0,3874.9,3.67124666]
[1760804812582,0.002,3875.0,3874.9,3.23854666]
[1760804817784,0.4597,3875.0,3874.9,3.23854666]
[1760804818000,0.002,3875.0,3874.9,2.70951176]
[1760804821784,0.4597,3875.0,3874.9,2.70951176]
[1760804823507,0.4597,3875.0,3874.9,0.1288]
[1760804823708,0.4597,3875.0,3874.0,1.728]
[1760804824019,0.4597,3875.0,3873.9,0.4327]
[1760804824020,0.6819,3874.9,3874.6,0.1288]
[1760804824678,0.6819,3874.9,3874.6,2.70971051]
[1760804825014,0.4729,3874.8,3874.7,2.58083839]
[1760804827016,0.4729,3874.8,3874.6,0.1288]
[1760804827204,0.2242,3874.9,3874.6,2.70968383]
[1760804827392,0.4415,3874.7,3874.6,2.70968383]
[1760804828310,0.4415,3874.7,3874.6,0.1288]
[1760804828916,0.2242,3874.9,3874.8,2.58077836]
[1760804829084,0.6657,3874.9,3874.8,2.58077836]
[1760804830119,0.6657,3874.9,3874.6,2.70965772]
[1760804830318,0.4415,3874.8,3874.7,2.58084387]
[1760804830518,0.4415,3874.8,3874.6,0.1288]
[1760804830717,0.4415,3874.7,3874.6,2.70971157]
[1760804831087,0.4415,3874.7,3874.6,0.1288]
[1760804831487,0.4415,3874.7,3874.6,2.70971157]
[1760804831785,0.48647822,3874.7,3874.6,2.70971157]
[1760804832195,0.48647822,3874.7,3874.6,0.1288]
[1760804832602,0.48647822,3874.7,3874.6,2.70971157]
[1760804833519,0.48647822,3874.7,3874.6,0.1288]
[1760804834798,0.48647822,3874.7,3874.3,2.58109926]
[1760804835000,0.4415,3874.6,3874.3,2.70989926]
[1760804835206,0.4415,3874.5,3874.3,0.1288]
[1760804835401,0.04497822,3874.7,3874.3,0.1288]
[1760804835402,0.4415,3874.4,3874.3,0.1288]
[1760804837026,0.4415,3874.4,3874.3,2.70991142]
[1760804837208,0.04497822,3874.7,3874.5,2.58091735]
[1760804837906,0.04497822,3874.7,3874.6,2.58091157]
[1760804839624,0.04497822,3874.7,3874.5,2.70975418]
[1760804840987,0.04497822,3874.7,3874.5,0.1288]
[1760804841319,0.4415,3874.6,3874.5,0.1288]
[1760804841507,0.04497822,3874.7,3874.5,0.1288]
[1760804841508,0.04497822,3874.7,3874.5,2.58097819]
[1760804841891,0.04497822,3874.7,3874.3,0.1288]
[1760804841892,0.04497822,3874.7,3874.4,2.58102837]
[1760804842519,0.4415,3874.6,3874.3,2.70989352]
[1760804842818,0.04497822,3874.7,3874.4,2.58103369]
[1760804843522,0.04497822,3874.7,3874.5,2.58097458]
[1760804843728,0.04497822,3874.7,3874.4,2.58103031]
[1760804844103,0.04497822,3874.7,3874.3,0.1288]
[1760804844302,0.04497822,3874.7,3874.4,2.58104227]
[1760804844524,0.48647822,3874.7,3874.4,2.58104227]
[1760804845503,0.4415,3874.6,3874.3,0.1288]
[1760804846129,0.04497822,3874.7,3874.3,0.1288]
[1760804846434,0.4415,3874.6,3874.3,0.1288]
[1760804847433,0.04697822,3874.7,3874.3,0.1288]
[1760804847744,0.4415,3874.5,3874.3,0.1288]
[1760804847907,0.4415,3874.4,3874.3,0.1288]
[1760804848307,0.4415,3874.4,3873.7,2.58150982]
[1760804848506,0.4415,3874.4,3874.0,0.1288]
[1760804848734,0.4415,3874.3,3874.0,0.1288]
[1760804851746,0.48648321,3874.3,3874.0,0.1288]
[1760804855639,0.4602,3874.2,3874.0,0.1288]
[1760804856321,0.4602,3874.1,3874.0,0.1288]
[1760804858859,0.4602,3874.1,3873.5,2.58157871]
[1760804859067,0.4602,3874.1,3873.7,0.1288]
[1760804859372,0.4602,3874.0,3873.7,0.1288]
[1760804859572,0.4602,3873.9,3873.7,0.1288]
[1760804861067,0.4602,3873.8,3873.7,0.1288]
[1760804861789,0.2359,3874.0,3873.7,0.1288]
[1760804861955,0.2359,3874.0,3872.9,0.4518]
[1760804861956,0.4602,3873.8,3872.9,0.4518]
[1760804862145,0.4602,3873.8,3873.3,0.1288]
[1760804862346,0.4602,3873.7,3873.3,0.1288]
[1760804863876,0.4602,3873.7,3873.3,2.71056118]
[1760804864071,0.4602,3873.7,3873.3,0.1288]
[1760804865758,0.4602,3873.6,3873.3,0.1288]
[1760804865959,0.40969005,3874.0,3873.3,0.1288]
[1760804866163,0.4602,3873.5,3873.3,0.1288]
[1760804868195,0.4602,3873.4,3873.3,0.1288]
[1760804869407,0.50519105,3873.7,3873.3,0.1288]
[1760804869598,0.4602,3873.6,3873.3,0.1288]
[1760804873464,0.04499105,3873.7,3873.4,0.02581711]
[1760804873676,0.04499105,3873.7,3873.6,2.58157786]
[1760804873959,0.04499105,3873.7,3873.6,3.03337786]
[1760804875494,0.04499105,3873.7,3873.5,0.1288]
[1760804876199,0.04499105,3873.7,3873.5,2.71042498]
[1760804877198,0.04499105,3873.7,3873.5,2.7104337]
[1760804877399,0.04499105,3873.7,3873.5,3.28483366]
[1760804877604,0.04499105,3873.7,3873.5,0.70319996]
[1760804877765,0.04499105,3873.7,3873.5,0.1288]
[1760804879809,0.50519105,3873.7,3873.5,0.1288]
[1760804880704,0.04499105,3873.7,3873.5,0.1288]
[1760804881005,0.04499105,3873.7,3873.5,2.710425]
[1760804881213,0.04499105,3873.7,3873.6,2.58157786]
[1760804881510,0.002,3874.3,3873.8,2.58138365]
[1760804881707,0.04698528,3874.3,3873.6,3.03335688]
[1760804882004,0.002,3874.3,3873.9,0.1288]
[1760804882379,0.002,3874.3,3873.9,2.71015506]
[1760804882791,0.002,3874.3,3873.9,3.16195506]
[1760804883410,0.002,3874.3,3874.2,0.1288]
[1760804884195,0.4622,3874.3,3874.2,0.1288]
[1760804884400,0.5071853,3874.3,3874.2,0.1288]
[1760804884711,0.0469853,3874.3,3874.2,0.1288]
[1760804890402,0.0469853,3874.3,3874.2,2.73578982]
[1760804890684,0.0469853,3874.3,3874.2,3.70548406]
[1760804891780,0.0469853,3874.3,3874.2,3.24168406]
[1760804892020,0.0469853,3874.3,3874.2,0.66050602]
[1760804892333,0.0469853,3874.3,3874.2,0.1288]
[1760804893516,0.0469853,3874.3,3874.2,2.70997804]
[1760804895134,0.0469853,3874.3,3874.2,0.1288]
[1760804895427,0.4978853,3874.3,3874.2,0.1288]
[1760804895929,0.0469853,3874.3,3874.2,0.1288]
[1760804896290,0.0469853,3874.3,3874.2,2.70997804]
[1760804898671,0.4978853,3874.3,3874.2,0.1288]
[1760804898836,0.4978853,3874.3,3873.7,2.58148524]
[1760804899036,0.4978853,3874.3,3873.9,0.1288]
[1760804899037,0.4509,3874.2,3873.9,0.1288]
[1760804899936,0.4509,3874.1,3873.9,0.1288]
[1760804900350,0.0469853,3874.3,3874.0,2.58130781]
[1760804900351,0.4978853,3874.3,3874.0,2.58130781]
[1760804900734,0.0469853,3874.3,3874.0,2.5813113]
[1760804901433,0.0469853,3874.3,3873.9,0.1288]
[1760804901635,0.0469853,3874.3,3874.1,2.58122968]
[1760804903265,0.0469853,3874.3,3873.9,0.1288]
[1760804903469,0.4509,3874.2,3873.9,0.1288]
[1760804903962,0.4509,3874.2,3873.9,2.71017081]
[1760804904950,0.0469853,3874.3,3874.0,2.58130227]
[1760804910177,0.0469853,3874.3,3874.1,2.58123904]
[1760804910377,0.0469853,3874.3,3874.2,2.60698982]
[1760804910578,0.002,3874.3,3874.2,3.19958982]
[1760804910769,0.002,3874.3,3874.2,3.77928982]
[1760804912989,0.002,3874.3,3874.2,3.75347804]
[1760804913178,0.002,3874.3,3874.2,4.38695687]
[1760804913962,0.002,3874.3,3874.2,9.07438709]
[1760804914161,0.002,3874.3,3874.2,11.43598709]
[1760804919399,0.002,3874.3,3874.2,10.78868709]
[1760804919615,0.002,3874.3,3874.2,11.42228709]
[1760804927266,0.002,3874.3,3874.2,10.97218709]
[1760804927472,0.002,3874.3,3874.2,11.42228709]
[1760804929171,0.002,3874.3,3874.2,10.97218709]
[1760804930434,0.002,3874.3,3874.2,10.33858709]
[1760804930763,0.002,3874.3,3874.2,10.28858709]
[1760804931365,0.002,3874.3,3874.2,9.76358828]
[1760804935367,0.002,3874.3,3874.2,10.21368828]
[1760804935942,0.002,3874.3,3874.2,9.76358828]
[1760804941987,0.4752,3874.3,3874.2,9.76358828]
[1760804942189,0.002,3874.3,3874.2,9.76358828]
[1760804942770,0.4752,3874.3,3874.2,9.76358828]
[1760804943876,0.002,3874.3,3874.2,9.76358828]
[1760804946183,0.002,3874.3,3874.2,8.03558828]
[1760804946383,0.4669,3874.3,3874.2,7.40210945]
[1760804948393,0.002,3874.3,3874.2,7.40210945]
[1760804950001,0.002,3874.3,3874.2,7.87160945]
[1760804950497,0.002,3874.3,3874.2,7.40210945]
[1760804950667,0.002,3874.3,3874.2,8.66065142]
[1760804951290,0.002,3874.3,3874.2,9.13015142]
[1760804953671,0.002,3874.3,3874.2,8.66065142]
[1760804953890,0.002,3874.3,3874.2,10.38865142]
[1760804954076,0.002,3874.3,3874.2,15.18468283]
[1760804954293,0.002,3875.0,3874.9,2.58071176]
[1760804954605,0.002,3875.0,3874.9,7.81898488]
[1760804955014,0.002,3875.8,3875.1,0.6336]
[1760804955169,0.002,3875.8,3875.3,2.58044538]
[1760804955508,0.2272,3875.5,3875.3,6.74287679]
[1760804955870,0.002,3875.8,3875.3,6.74287679]
[1760804957176,0.002,3875.8,3875.3,6.97007679]
[1760804957377,0.002,3875.8,3875.3,8.2321875]
[1760804965142,0.4649,3875.7,3875.3,8.2321875]
[1760804965310,0.4649,3875.7,3875.3,8.3609875]
[1760804968212,0.002,3875.8,3875.3,8.3609875]
[1760804968432,0.4669,3875.4,3875.3,8.3609875]
[1760804968610,0.4669,3875.4,3875.3,7.09887679]
[1760804974763,0.4669,3875.4,3875.3,2.93644538]
[1760804993385,0.4669,3875.4,3875.3,2.70924538]
[1760804993386,0.4507,3875.4,3875.3,2.70924538]
[1760804993994,0.4507,3875.4,3875.3,0.1288]
[1760804995413,0.4507,3875.4,3875.3,2.70924538]
[1760804999322,0.002,3875.4,3875.3,2.70924538]
[1760804999688,0.002,3875.4,3875.3,3.78048669]
[1760804999888,0.002,3875.4,3875.3,4.65918669]
[1760805000316,0.002,3875.4,3875.3,4.23118669]
[1760805000487,0.002,3875.4,3875.3,4.65918669]
[1760805002398,0.002,3875.4,3875.3,4.23118669]
[1760805002806,0.4507,3875.4,3875.3,3.15994538]
[1760805003040,0.4507,3875.4,3875.3,2.70924538]
[1760805003712,0.4507,3875.4,3875.3,0.1288]
[1760805004103,0.4507,3875.4,3875.3,2.70924538]
[1760805005936,0.4507,3875.4,3875.3,0.1288]
[1760805006348,0.4507,3875.4,3875.1,2.71037831]
[1760805006521,0.4315,3875.3,3875.1,2.71037831]
[1760805006704,0.4315,3875.2,3875.1,2.71037831]
[1760805006906,0.4315,3875.2,3875.1,0.1298]
[1760805007330,0.4315,3875.2,3875.1,2.71037856]
[1760805008413,0.4315,3875.2,3875.1,0.001]
[1760805010072,0.47647394,3875.2,3875.1,0.001]
[1760805015241,0.4315,3875.2,3875.1,0.001]
[1760805018654,5.37361197,3875.2,3875.1,0.001]
[1760805018841,35.37361197,3875.2,3875.1,0.001]
[1760805019040,35.4771315,3875.2,3875.1,0.001]
[1760805019946,35.88202012,3875.2,3875.1,0.001]
[1760805020976,31.41586012,3875.2,3875.1,0.001]
[1760805021943,35.02242512,3875.2,3875.1,0.001]
[1760805022850,4.94237836,3874.8,3874.7,0.001]
[1760805023051,30.71387446,3874.8,3874.7,0.001]
[1760805023272,30.71387446,3874.8,3874.3,0.001]
[1760805023273,28.1054208,3874.4,3874.3,0.001]
[1760805023575,27.7661829,3874.4,3874.3,0.001]
[1760805023778,28.1976829,3874.4,3874.3,0.001]
[1760805023982,29.43760904,3874.2,3874.1,0.001]
[1760805024285,27.60188404,3874.2,3874.1,0.001]
[1760805024495,28.03338404,3874.2,3874.1,0.001]
[1760805024654,27.48997304,3874.2,3874.1,0.001]
[1760805024862,27.53496804,3874.2,3874.1,0.001]
[1760805025115,30.17062215,3874.2,3874.1,0.001]
[1760805025391,27.57060015,3874.2,3874.1,0.001]
[1760805025994,27.57060015,3874.2,3873.8,0.001]
[1760805025995,33.21497793,3873.9,3873.8,0.001]
[1760805026201,40.15427203,3873.9,3873.8,0.001]
[1760805026697,41.02317203,3873.9,3873.8,0.001]
[1760805027996,11.06817204,3873.9,3873.8,0.001]
[1760805028293,41.06817204,3873.9,3873.8,0.001]
[1760805030399,17.52817411,3873.9,3873.8,0.001]
[1760805030617,16.08559904,3873.9,3873.8,0.001]
[1760805031262,19.47008304,3873.9,3873.8,0.001]
[1760805031462,18.32499404,3873.9,3873.8,0.001]
[1760805032311,7.40019411,3873.9,3873.8,0.001]
[1760805032512,9.67843411,3873.9,3873.8,0.001]
[1760805032817,9.78743411,3873.9,3873.8,0.001]
[1760805033017,7.50919411,3873.9,3873.8,0.001]
[1760805033893,7.40019411,3873.9,3873.8,0.001]
[1760805034294,7.40019411,3873.9,3873.8,0.4414]
[1760805034489,7.40019411,3873.9,3873.8,0.001]
[1760805034690,6.76659411,3873.9,3873.8,0.001]
[1760805036328,7.17153225,3873.9,3873.8,0.001]
[1760805041429,0.44993815,3873.9,3873.8,0.4414]
[1760805041639,0.1288,3874.2,3873.9,2.58132778]
[1760805041951,0.1288,3874.2,3874.1,0.1969]
[1760805042309,0.1288,3874.2,3874.1,0.6373]
[1760805042898,0.40488321,3874.5,3874.1,0.6373]
[1760805043239,0.1288,3874.7,3874.2,0.4404]
[1760805043530,0.1288,3874.7,3874.3,0.4404]
[1760805044454,0.17378752,3874.7,3874.1,0.1969]
[1760805045026,4.9935941,3874.5,3874.1,0.1969]
[1760805045337,4.9935941,3874.5,3873.8,0.001]
[1760805045338,0.1288,3874.2,3873.8,0.001]
[1760805045640,0.1288,3873.9,3873.8,0.001]
[1760805047674,0.5668,3873.9,3873.8,0.001]
[1760805047890,0.7839,3873.9,3873.8,0.001]
[1760805048237,5.09327793,3873.9,3873.8,0.001]
[1760805048551,5.77187785,3873.9,3873.8,0.001]
[1760805049885,15.49314545,3873.9,3873.8,0.001]
[1760805050061,14.38203745,3873.9,3873.8,0.001]
[1760805050377,11.15199045,3873.9,3873.8,0.001]
[1760805050736,15.48214945,3873.9,3873.8,0.001]
[1760805051872,6.17685545,3873.9,3873.8,0.001]
[1760805052168,27.22783945,3873.9,3873.8,0.001]
[1760805052871,6.17685545,3873.9,3873.8,0.001]
[1760805053058,36.17685545,3873.9,3873.8,0.001]
[1760805053469,28.39843445,3873.9,3873.8,0.001]
[1760805053673,25.86295645,3873.9,3873.8,0.001]
[1760805053875,26.77165745,3873.9,3873.8,0.001]
[1760805054054,21.54976445,3873.9,3873.8,0.001]
[1760805054967,26.55045345,3873.9,3873.8,0.001]
[1760805055284,19.85055445,3873.9,3873.8,0.001]
[1760805055453,28.70390919,3873.9,3873.8,0.001]
[1760805055880,32.04714919,3873.9,3873.8,0.001]
[1760805056981,36.47632219,3873.9,3873.8,0.001]
[1760805057988,40.37251319,3873.9,3873.8,0.001]
[1760805058286,32.89193165,3873.9,3873.8,0.001]
[1760805059086,39.89625165,3873.9,3873.8,0.001]
[1760805059289,35.23570665,3873.9,3873.8,0.001]
[1760805059755,3.2152445,3873.5,3873.4,0.001]
[1760805059963,20.12647537,3873.5,3873.4,0.001]
[1760805060162,20.56447537,3873.5,3873.4,0.001]
[1760805060466,21.00487537,3873.5,3873.4,0.001]
[1760805060869,20.35644313,3873.1,3873.0,0.001]
[1760805061060,24.890239,3873.1,3873.0,0.001]
[1760805061689,24.858459,3873.1,3873.0,0.001]
[1760805061892,23.575959,3873.1,3873.0,0.001]
[1760805062094,23.384759,3873.1,3873.0,0.001]
[1760805062454,23.822759,3873.1,3873.0,0.001]
[1760805062980,10.44169336,3873.1,3873.0,0.001]
[1760805063188,23.65956436,3873.1,3873.0,0.001]
[1760805063366,10.00369336,3873.1,3873.0,0.001]
[1760805063566,14.44885736,3873.1,3873.0,0.001]
[1760805063870,7.42178223,3873.1,3873.0,0.001]
[1760805064195,6.98038223,3873.1,3873.0,0.4414]
[1760805064498,6.57533853,3873.1,3873.0,0.4414]
[1760805064693,6.53032587,3873.1,3873.0,0.4414]
[1760805065467,6.53032587,3873.1,3873.0,0.001]
[1760805066266,5.89672587,3873.1,3873.0,0.4737]
[1760805067367,5.89672587,3873.1,3873.0,0.001]
[1760805067569,5.94173385,3873.1,3873.0,0.001]
[1760805067768,6.34674736,3873.1,3873.0,0.001]
[1760805068500,6.34674736,3873.1,3873.0,0.4737]
[1760805068700,2.17802149,3873.1,3873.0,0.4737]
[1760805068899,2.30682149,3873.1,3873.0,0.4737]
[1760805069291,6.47554736,3873.1,3873.0,0.001]
[1760805070397,7.10914736,3873.1,3873.0,0.001]
[1760805071419,9.69105849,3873.1,3873.0,0.001]
[1760805071622,7.10914736,3873.1,3873.0,0.001]
[1760805073610,22.17403549,3873.1,3873.0,0.001]
[1760805074708,20.25963749,3873.1,3873.0,0.001]
[1760805074920,17.72417149,3873.1,3873.0,0.001]
[1760805076325,12.80110149,3873.1,3873.0,0.001]
[1760805076708,7.57884736,3873.1,3873.0,0.001]
[1760805077015,12.39460849,3873.1,3873.0,0.001]
[1760805077992,11.92490849,3873.1,3873.0,0.001]
[1760805078192,12.39460849,3873.1,3873.0,0.001]
[1760805078919,18.53592298,3873.1,3873.0,0.001]
[1760805079528,11.55322954,3872.7,3872.6,0.001]
[1760805079726,11.55322954,3872.7,3871.3,0.1969]
[1760805079727,5.89672587,3871.4,3871.3,0.1969]
[1760805079892,8.47977076,3871.4,3871.3,0.1969]
[1760805080091,4.31111161,3871.3,3870.8,0.4727]
[1760805080315,4.94471161,3871.3,3870.8,0.4727]
[1760805080740,9.11343748,3871.3,3870.7,0.1969]
[1760805080917,9.58313748,3871.3,3870.7,0.1969]
[1760805081314,9.11343748,3871.3,3870.7,0.1969]
[1760805081931,10.03339468,3871.3,3870.7,0.1969]
[1760805082090,9.56369468,3871.3,3869.0,0.109]
[1760805082290,1.728,3870.5,3870.0,0.4727]
[1760805082531,4.16872587,3870.1,3869.0,2.69363068]
[1760805082890,4.16872587,3870.1,3869.1,2.58457114]
[1760805083096,4.16872587,3870.1,3870.0,0.4727]
[1760805083297,0.04503655,3870.1,3870.0,0.4727]
[1760805084196,0.04503655,3870.1,3869.0,2.69363376]
[1760805084197,4.21376242,3870.1,3869.4,0.4727]
[1760805084555,4.16872587,3869.8,3869.4,0.4727]
[1760805084946,4.16872587,3869.8,3869.5,0.4727]
[1760805085747,4.16872587,3869.8,3869.1,0.4727]
[1760805085944,4.16872587,3869.5,3869.1,0.4727]
[1760805086145,4.16872587,3869.5,3869.0,0.109]
[1760805086360,0.2203,3869.8,3868.8,0.4727]
[1760805086361,0.6336,3869.1,3868.8,0.4727]
[1760805086654,0.6336,3869.1,3868.0,2.78216419]
[1760805086963,0.6336,3869.1,3868.9,0.4727]
[1760805087140,2.3616,3869.1,3868.9,0.4727]
[1760805087342,0.4697,3869.0,3868.0,0.1969]
[1760805087535,0.6336,3868.6,3868.1,0.4727]
[1760805087852,2.3616,3868.6,3868.2,0.4727]
[1760805088020,2.3616,3868.6,3868.3,0.4727]
[1760805089054,2.3616,3868.6,3868.0,0.1969]
[1760805089055,1.728,3868.6,3868.4,0.4727]
[1760805089254,1.728,3868.6,3868.5,0.4727]
[1760805089423,0.04505755,3868.6,3868.5,0.4727]
[1760805090128,0.04505755,3868.6,3868.0,0.1969]
[1760805090452,0.04505755,3868.6,3868.1,0.4727]
[1760805090650,0.04505755,3868.6,3868.2,0.4727]
[1760805090849,0.04505755,3868.6,3868.3,0.4727]
[1760805091049,0.04505755,3868.6,3868.4,0.4727]
[1760805092454,0.04505755,3868.6,3868.1,0.4727]
[1760805093552,0.04505755,3868.6,3868.0,0.1969]
[1760805093724,0.04505755,3868.6,3868.4,0.001]
[1760805097859,0.49895755,3868.6,3868.4,0.001]
[1760805098060,0.04505755,3868.6,3868.4,0.001]
[1760805106690,0.1288,3868.5,3868.4,0.001]
[1760805106996,0.04505755,3868.6,3868.4,0.001]
[1760805107301,0.4539,3868.5,3868.4,0.001]
[1760805107892,0.04505755,3868.6,3868.4,0.001]
[1760805108997,3.44928125,3868.5,3868.4,0.001]
[1760805109155,6.073345,3868.5,3868.4,0.001]
[1760805109483,8.51572254,3868.5,3868.4,0.001]
[1760805109671,13.51935279,3868.5,3868.4,0.001]
[1760805109874,11.10070379,3868.5,3868.4,0.001]
[1760805110087,7.22572254,3868.5,3868.4,0.001]
[1760805110256,1.728,3868.5,3868.4,0.001]
[1760805112187,0.4054939,3868.6,3868.4,0.4332]
[1760805112369,0.4054939,3868.6,3868.5,0.4322]
[1760805113088,0.04505694,3868.6,3868.5,0.4322]
[1760805114621,1.728,3869.2,3868.5,0.4322]
[1760805114975,4.17952254,3869.0,3868.4,0.001]
[1760805115403,5.15412555,3869.1,3868.4,0.001]
[1760805117009,0.1288,3868.5,3868.4,0.001]
[1760805117307,0.1288,3868.7,3868.4,0.7547156]
[1760805117506,0.1288,3868.7,3868.5,0.4322]
[1760805117929,0.1288,3868.7,3868.4,0.001]
[1760805118077,0.1288,3868.7,3868.6,0.4322]
[1760805119528,0.1288,3868.7,3868.4,0.001]
[1760805119734,0.0450541,3868.8,3868.4,0.001]
[1760805119886,5.15412555,3868.6,3868.4,0.001]
[1760805120383,2.8155,3868.5,3868.4,0.001]
[1760805120813,5.40048125,3868.5,3868.4,0.001]
[1760805121021,2.8155,3868.5,3868.4,0.001]
[1760805121732,0.4539,3868.5,3868.4,0.001]
[1760805122104,2.1819,3868.5,3868.4,0.001]
[1760805122435,2.8155,3868.5,3868.4,0.001]
[1760805123021,5.40048125,3868.5,3868.4,0.001]
[1760805123442,2.8155,3868.5,3868.4,0.001]
[1760805123936,5.40048125,3868.5,3868.4,0.001]
[1760805124236,1.728,3868.8,3868.4,0.001]
[1760805124443,3.36185601,3869.6,3868.4,0.001]
[1760805124444,4.70022555,3869.4,3868.4,0.001]
[1760805124606,0.4524,3869.6,3868.4,0.001]
[1760805124607,0.1288,3868.7,3868.5,0.428]
[1760805124910,0.1288,3868.7,3868.4,0.001]
[1760805125109,0.1288,3868.7,3868.5,0.428]
[1760805125338,0.1288,3868.7,3868.6,0.428]
[1760805126041,0.1288,3868.7,3868.4,0.001]
[1760805126236,0.1288,3868.7,3868.5,0.4564]
[1760805126410,0.1288,3868.7,3868.6,0.4564]
[1760805127636,0.1288,3868.7,3868.4,0.001]
[1760805128938,7.2846118,3869.4,3868.4,0.001]
[1760805128939,0.2315,3868.8,3868.4,0.001]
[1760805129152,1.728,3868.5,3868.4,0.001]
[1760805129849,2.1985,3868.5,3868.4,0.001]
[1760805131029,2.8321,3868.5,3868.4,0.001]